fUSD/lending_fUSD_20251210
["ID","MTS","AMOUNT","RATE_DAILY","PERIOD"]
[398060303,1765345838205,-500.0,0.00014884,2]
[398060304,1765345838215,-500.0,0.00014884,2]
[398060305,1765345838224,-500.0,0.00014884,2]
[398060306,1765345838234,-500.0,0.00014884,2]
[398060307,1765345838244,-500.0,0.00014884,2]
[398060308,1765345838253,-500.0,0.00014884,2]
[398060309,1765345838263,-641.790329,0.00014884,2]
[398060310,1765345838273,-891.41,0.00014884,2]
[398060311,1765345838283,-500.0,0.00014884,2]
[398060312,1765345838292,-157.87582,0.00014884,2]
[398060313,1765345838301,-725.62,0.00014884,2]
[398060314,1765345838311,-604.37,0.00014884,2]
[398060315,1765345838320,-1660.048152,0.00014884,2]
[398060316,1765345838329,-500.0,0.00014884,2]
[398060317,1765345838339,-1731.234733,0.00014884,2]
[398060318,1765345838349,-195.089803,0.00014884,2]
[398060319,1765345838358,-500.0,0.00014884,2]
[398060320,1765345838367,-500.0,0.00014884,2]
[398060321,1765345838376,-1133.052679,0.00014884,2]
[398060322,1765345838385,-500.0,0.00014884,2]
[398060323,1765345838395,-695.26,0.00014884,2]
[398060324,1765345838405,-722.33,0.00014884,2]
[398060325,1765345838415,-305.06598385,0.00014884,2]
[398060326,1765345838424,-500.0,0.00014884,2]
[398060327,1765345838433,-531.08,0.00014884,2]
[398060328,1765345838443,-507.20399021,0.00014884,2]
[398060329,1765345838452,-500.0,0.00014884,2]
[398060330,1765345838461,-500.0,0.00014884,2]
[398060331,1765345838471,-512.92,0.00014884,2]
[398060332,1765345838480,-500.0,0.00014884,2]
[398060333,1765345838489,-500.0,0.00014884,2]
[398060334,1765345838499,-500.0,0.00014884,2]
[398060335,1765345838508,-500.0,0.00014884,2]
[398060336,1765345838520,-500.0,0.00014884,2]
[398060337,1765345838529,-984.69,0.00014884,2]
[398060338,1765345838538,-500.0,0.00014884,2]
[398060339,1765345838547,-500.0,0.00014884,2]
[398060340,1765345838557,-500.0,0.00014884,2]
[398060341,1765345838566,-168.89731742,0.00014884,2]
[398060342,1765345838576,-573.71849983,0.00014884,2]
[398060343,1765345838586,-633.19,0.00014884,2]
[398060344,1765345838595,-500.0,0.00014884,2]
[398060345,1765345838606,-500.0,0.00014884,2]
[398060346,1765345838616,-500.0,0.00014884,2]
[398060347,1765345838626,-500.0,0.00014884,2]
[398060348,1765345838635,-513.39,0.00014884,2]
[398060349,1765345838644,-500.0,0.00014884,2]
[398060350,1765345838654,-500.0,0.00014884,2]
[398060351,1765345838663,-500.0,0.00014884,2]
[398060352,1765345838672,-500.68,0.00014884,2]
[398060353,1765345838681,-500.0,0.00014884,2]
[398060354,1765345838690,-500.0,0.00014884,2]
[398060355,1765345838699,-1357.22,0.00014884,2]
[398060356,1765345838709,-500.0,0.00014884,2]
[398060357,1765345838718,-500.0,0.00014884,2]
[398060358,1765345838728,-211.00922594,0.00014884,2]
[398060359,1765345838737,-500.0,0.00014884,2]
[398060360,1765345838747,-500.0,0.00014884,2]
[398060361,1765345838757,-500.0,0.00014884,2]
[398060362,1765345838768,-1190.26,0.00014884,2]
[398060363,1765345838777,-580.97,0.00014884,2]
[398060364,1765345838787,-500.0,0.00014884,2]
[398060365,1765345838796,-796.48,0.00014884,2]
[398060366,1765345838806,-500.0,0.00014884,2]
[398060367,1765345838815,-500.0,0.00014884,2]
[398060368,1765345838825,-500.0,0.00014884,2]
[398060369,1765345838835,-539.62,0.00014884,2]
[398060370,1765345838846,-500.0,0.00014884,2]
[398060371,1765345838856,-500.0,0.00014884,2]
[398060372,1765345838867,-500.0,0.00014884,2]
[398060373,1765345838877,-500.0,0.00014884,2]
[398060374,1765345838886,-500.0,0.00014884,2]
[398060375,1765345838896,-358.34951285,0.00014884,2]
[398060376,1765345838921,-141.65048715,0.00014884,2]
[398060377,1765345838935,-221.59813065,0.00014884,2]
[398060378,1765345838945,-500.0,0.00014884,2]
[398060379,1765345838955,-457.23820861,0.00014884,2]
[398060382,1765345839676,-42.76179139,0.00014884,2]
[398060383,1765345839686,-526.90350759,0.00014884,2]
[398060384,1765345839695,-500.0,0.00014884,2]
[398060385,1765345839704,-500.0,0.00014884,2]
[398060386,1765345839714,-30.33470099,0.00014884,2]
[398060387,1765345839761,-1234.62529901,0.00014884,2]
[398060388,1765345839771,-500.0,0.00014884,2]
[398060389,1765345839780,-500.0,0.00014884,2]
[398060390,1765345839789,-500.0,0.00014884,2]
[398060391,1765345839800,-500.0,0.00014884,2]
[398060392,1765345839809,-500.0,0.00014884,2]
[398060393,1765345839819,-500.0,0.00014884,2]
[398060394,1765345839828,-500.0,0.00014884,2]
[398060395,1765345839839,-500.0,0.00014884,2]
[398060396,1765345839848,-915.35,0.00014884,2]
[398060397,1765345839858,-500.0,0.00014884,2]
[398060398,1765345839867,-500.0,0.00014884,2]
[398060399,1765345839877,-500.0,0.00014884,2]
[398060400,1765345839887,-500.0,0.00014884,2]
[398060401,1765345839897,-500.0,0.00014884,2]
[398060402,1765345839907,-500.0,0.00014884,2]
[398060403,1765345839918,-500.0,0.00014884,2]
[398060404,1765345839927,-500.0,0.00014884,2]
[398060405,1765345839936,-500.0,0.00014884,2]
[398060406,1765345839946,-500.0,0.00014884,2]
[398060407,1765345839955,-500.0,0.00014884,2]
[398060408,1765345839964,-500.0,0.00014884,2]
[398060409,1765345839974,-500.0,0.00014884,2]
[398060410,1765345839984,-673.89,0.00014884,2]
[398060411,1765345839993,-500.0,0.00014884,2]
[398060412,1765345840004,-500.0,0.00014884,2]
[398060413,1765345840013,-510.01094798,0.00014884,2]
[398060414,1765345840023,-500.0,0.00014884,2]
[398060415,1765345840032,-500.0,0.00014884,2]
[398060416,1765345840043,-500.0,0.00014884,2]
[398060417,1765345840054,-500.0,0.00014884,2]
[398060418,1765345840063,-762.0,0.00014884,2]
[398060419,1765345840072,-500.0,0.00014884,2]
[398060420,1765345840081,-3256.23,0.00014884,2]
[398060421,1765345840091,-500.0,0.00014884,2]
[398060423,1765345840100,-503.38081897,0.00014884,2]
[398060424,1765345840110,-500.0,0.00014884,2]
[398060425,1765345840119,-300.0,0.00014884,2]
[398060426,1765345840129,-500.0,0.00014884,2]
[398060427,1765345840138,-500.0,0.00014884,2]
[398060428,1765345840147,-727.41,0.00014884,2]
[398060429,1765345840157,-500.0,0.00014884,2]
[398060430,1765345840166,-500.0,0.00014884,2]
[398060431,1765345840176,-578.76074723,0.00014884,2]
[398060432,1765345840186,-500.0,0.00014884,2]
[398060433,1765345840196,-500.0,0.00014884,2]
[398060434,1765345840205,-432.24333045,0.00014884,2]
[398060435,1765345840215,-580.37028973,0.00014884,2]
[398060436,1765345840224,-500.0,0.00014884,2]
[398060437,1765345840234,-500.0,0.00014884,2]
[398060439,1765345840244,-892.61,0.00014884,2]
[398060440,1765345840253,-1071.96,0.00014884,2]
[398060441,1765345840262,-500.0,0.00014884,2]
[398060442,1765345840272,-500.0,0.00014884,2]
[398060443,1765345840281,-500.0,0.00014884,2]
[398060444,1765345840292,-500.0,0.00014884,2]
[398060445,1765345840302,-500.0,0.00014884,2]
[398060446,1765345840313,-489.32807266,0.00014884,2]
[398060447,1765345840322,-1775.39,0.00014884,2]
[398060448,1765345840332,-500.0,0.00014884,2]
[398060449,1765345840341,-500.0,0.00014884,2]
[398060450,1765345840350,-500.0,0.00014884,2]
[398060451,1765345840359,-500.0,0.00014884,2]
[398060452,1765345840368,-500.0,0.00014884,2]
[398060453,1765345840379,-500.0,0.00014884,2]
[398060454,1765345840390,-500.0,0.00014884,2]
[398060455,1765345840400,-500.0,0.00014884,2]
[398060456,1765345840409,-520.58,0.00014884,2]
[398060457,1765345840418,-500.0,0.00014884,2]
[398060458,1765345840427,-500.0,0.00014884,2]
[398060459,1765345840437,-500.0,0.00014884,2]
[398060460,1765345840446,-739.15,0.00014884,2]
[398060461,1765345840457,-500.0,0.00014884,2]
[398060462,1765345840467,-722.91,0.00014884,2]
[398060463,1765345840476,-500.0,0.00014884,2]
[398060464,1765345840485,-500.0,0.00014884,2]
[398060465,1765345840495,-500.0,0.00014884,2]
[398060466,1765345840504,-500.0,0.00014884,2]
[398060467,1765345840514,-500.0,0.00014884,2]
[398060468,1765345840523,-500.0,0.00014884,2]
[398060469,1765345840532,-510.5449703,0.00014884,2]
[398060470,1765345840542,-500.0,0.00014884,2]
[398060471,1765345840551,-500.0,0.00014884,2]
[398060472,1765345840560,-500.0,0.00014884,2]
[398060473,1765345840569,-500.0,0.00014884,2]
[398060474,1765345840578,-500.0,0.00014884,2]
[398060475,1765345840587,-440.07422525,0.00014884,2]
[398060476,1765345840596,-500.0,0.00014884,2]
[398060477,1765345840606,-500.0,0.00014884,2]
[398060478,1765345840615,-500.0,0.00014884,2]
[398060479,1765345840624,-500.0,0.00014884,2]
[398060480,1765345840633,-500.0,0.00014884,2]
[398060481,1765345840642,-654.63,0.00014884,2]
[398060482,1765345840651,-500.0,0.00014884,2]
[398060483,1765345840660,-500.0,0.00014884,2]
[398060484,1765345840669,-500.0,0.00014884,2]
[398060485,1765345840678,-500.0,0.00014884,2]
[398060486,1765345840688,-500.0,0.00014884,2]
[398060487,1765345840697,-514.9,0.00014884,2]
[398060488,1765345840706,-547.98,0.00014884,2]
[398060489,1765345840715,-600.29622209,0.00014884,2]
[398060490,1765345840724,-500.0,0.00014884,2]
[398060491,1765345840733,-500.0,0.00014884,2]
[398060492,1765345840744,-500.0,0.00014884,2]
[398060493,1765345840754,-500.0,0.00014884,2]
[398060494,1765345840764,-500.0,0.00014884,2]
[398060495,1765345840774,-500.0,0.00014884,2]
[398060496,1765345840783,-500.0,0.00014884,2]
[398060497,1765345840792,-500.0,0.00014884,2]
[398060498,1765345840801,-500.0,0.00014884,2]
[398060499,1765345840810,-505.94,0.00014884,2]
[398060500,1765345840820,-500.0,0.00014884,2]
[398060501,1765345840829,-500.0,0.00014884,2]
[398060502,1765345840837,-500.0,0.00014884,2]
[398060503,1765345840846,-500.0,0.00014884,2]
[398060504,1765345840855,-500.0,0.00014884,2]
[398060505,1765345840864,-500.0,0.00014884,2]
[398060506,1765345840874,-500.0,0.00014884,2]
[398060507,1765345840883,-500.0,0.00014884,2]
[398060508,1765345840894,-500.0,0.00014884,2]
[398060509,1765345840904,-562.52,0.00014884,2]
[398060510,1765345840914,-500.0,0.00014884,2]
[398060511,1765345840924,-500.0,0.00014884,2]
[398060512,1765345840933,-701.29,0.00014884,2]
[398060513,1765345840943,-500.0,0.00014884,2]
[398060514,1765345840952,-500.0,0.00014884,2]
[398060515,1765345840962,-644.64,0.00014884,2]
[398060516,1765345840972,-500.0,0.00014884,2]
[398060517,1765345840982,-569.14,0.00014884,2]
[398060518,1765345840992,-505.8,0.00014884,2]
[398060519,1765345841001,-1354.18,0.00014884,2]
[398060520,1765345841010,-511.39928582,0.00014884,2]
[398060521,1765345841023,-500.0,0.00014884,2]
[398060522,1765345841032,-500.0,0.00014884,2]
[398060523,1765345841041,-500.0,0.00014884,2]
[398060524,1765345841050,-500.0,0.00014884,2]
[398060525,1765345841061,-637.74,0.00014884,2]
[398060526,1765345841070,-500.0,0.00014884,2]
[398060527,1765345841079,-500.0,0.00014884,2]
[398060528,1765345841089,-858.36,0.00014884,2]
[398060529,1765345841100,-500.0,0.00014884,2]
[398060530,1765345841110,-756.44,0.00014884,2]
[398060531,1765345841120,-500.0,0.00014884,2]
[398060532,1765345841130,-657.93,0.00014884,2]
[398060533,1765345841140,-204.04269117,0.00014884,2]
[398060534,1765345841149,-500.0,0.00014884,2]
[398060535,1765345841159,-500.0,0.00014884,2]
[398060536,1765345841168,-1078.84,0.00014884,2]
[398060537,1765345841177,-1269.26,0.00014884,2]
[398060538,1765345841187,-500.0,0.00014884,2]
[398060539,1765345841196,-500.0,0.00014884,2]
[398060540,1765345841205,-500.0,0.00014884,2]
[398060541,1765345841215,-723.0,0.00014884,2]
[398060542,1765345841223,-500.0,0.00014884,2]
[398060543,1765345841233,-500.0,0.00014884,2]
[398060544,1765345841242,-500.0,0.00014884,2]
[398060545,1765345841252,-636.61516224,0.00014884,2]
[398060546,1765345841261,-500.0,0.00014884,2]
[398060547,1765345841270,-683.72,0.00014884,2]
[398060548,1765345841279,-500.0,0.00014884,2]
[398060549,1765345841288,-500.0,0.00014884,2]
[398060550,1765345841297,-500.0,0.00014884,2]
[398060551,1765345841307,-500.0,0.00014884,2]
[398060552,1765345841318,-500.0,0.00014884,2]
[398060553,1765345841327,-500.0,0.00014884,2]
[398060554,1765345841336,-606.04,0.00014884,2]
[398060555,1765345841346,-724.68,0.00014884,2]
[398060556,1765345841356,-215.0788762,0.00014884,2]
[398060557,1765345841365,-500.0,0.00014884,2]
[398060558,1765345841375,-500.0,0.00014884,2]
[398060559,1765345841386,-500.0,0.00014884,2]
[398060560,1765345841396,-500.0,0.00014884,2]
[398060561,1765345841405,-500.0,0.00014884,2]
[398060562,1765345841415,-1311.34,0.00014884,2]
[398060563,1765345841426,-500.0,0.00014884,2]
[398060564,1765345841435,-500.0,0.00014884,2]
[398060565,1765345841445,-500.0,0.00014884,2]
[398060566,1765345841455,-1489.55,0.00014884,2]
[398060567,1765345841464,-4529.84,0.00014884,2]
[398060568,1765345841473,-500.0,0.00014884,2]
[398060569,1765345841483,-500.0,0.00014884,2]
[398060570,1765345841492,-500.0,0.00014884,2]
[398060571,1765345841501,-500.0,0.00014884,2]
[398060572,1765345841511,-500.0,0.00014884,2]
[398060573,1765345841520,-647.66,0.00014884,2]
[398060574,1765345841529,-500.0,0.00014884,2]
[398060575,1765345841539,-500.0,0.00014884,2]
[398060576,1765345841548,-500.0,0.00014884,2]
[398060577,1765345841558,-500.0,0.00014884,2]
[398060578,1765345841568,-500.0,0.00014884,2]
[398060579,1765345841577,-500.0,0.00014884,2]
[398060580,1765345841586,-559.54,0.00014884,2]
[398060581,1765345841596,-500.0,0.00014884,2]
[398060582,1765345841605,-500.0,0.00014884,2]
[398060583,1765345841615,-500.0,0.00014884,2]
[398060584,1765345841625,-662.84,0.00014884,2]
[398060585,1765345841635,-500.0,0.00014884,2]
[398060586,1765345841645,-782.95,0.00014884,2]
[398060587,1765345841655,-164.1957809,0.00014884,2]
[398060588,1765345841664,-500.0,0.00014884,2]
[398060589,1765345841674,-500.0,0.00014884,2]
[398060590,1765345841685,-505.8,0.00014884,2]
[398060591,1765345841695,-621.45,0.00014884,2]
[398060592,1765345841704,-500.0,0.00014884,2]
[398060593,1765345841715,-500.0,0.00014884,2]
[398060594,1765345841724,-500.0,0.00014884,2]
[398060595,1765345841734,-500.0,0.00014884,2]
[398060596,1765345841743,-500.0,0.00014884,2]
[398060597,1765345841752,-2732.48,0.00014884,2]
[398060598,1765345841761,-631.73,0.00014884,2]
[398060599,1765345841771,-500.0,0.00014884,2]
[398060600,1765345841780,-500.0,0.00014884,2]
[398060601,1765345841789,-500.0,0.00014884,2]
[398060602,1765345841799,-500.0,0.00014884,2]
[398060603,1765345841808,-285.52531927,0.00014884,2]
[398060604,1765345841817,-552.37,0.00014884,2]
[398060605,1765345841827,-510.94957249,0.00014884,2]
[398060606,1765345841837,-500.0,0.00014884,2]
[398060607,1765345841848,-500.0,0.00014884,2]
[398060608,1765345841857,-500.0,0.00014884,2]
[398060609,1765345841866,-500.0,0.00014884,2]
[398060610,1765345841875,-814.86,0.00014884,2]
[398060611,1765345841884,-165.13949772,0.00014884,2]
[398060612,1765345841894,-500.0,0.00014884,2]
[398060613,1765345841904,-500.0,0.00014884,2]
[398060614,1765345841914,-500.0,0.00014884,2]
[398060615,1765345841924,-500.0,0.00014884,2]
[398060616,1765345841935,-500.0,0.00014884,2]
[398060617,1765345841945,-628.58,0.00014884,2]
[398060618,1765345841954,-500.0,0.00014884,2]
[398060619,1765345841964,-1098.67,0.00014884,2]
[398060620,1765345841973,-604.34,0.00014884,2]
[398060621,1765345841982,-500.0,0.00014884,2]
[398060622,1765345841992,-500.13930884,0.00014884,2]
[398060623,1765345842001,-500.0,0.00014884,2]
[398060624,1765345842010,-500.0,0.00014884,2]
[398060625,1765345842019,-570.09,0.00014884,2]
[398060626,1765345842028,-500.0,0.00014884,2]
[398060627,1765345842038,-615.61,0.00014884,2]
[398060628,1765345842047,-702.06,0.00014884,2]
[398060629,1765345842056,-501.29387523,0.00014884,2]
[398060630,1765345842065,-500.0,0.00014884,2]
[398060631,1765345842075,-622.09,0.00014884,2]
[398060632,1765345842084,-500.0,0.00014884,2]
[398060633,1765345842093,-500.0,0.00014884,2]
[398060634,1765345842103,-521.75,0.00014884,2]
[398060635,1765345842112,-500.0,0.00014884,2]
[398060636,1765345842121,-500.0,0.00014884,2]
[398060637,1765345842131,-544.53,0.00014884,2]
[398060638,1765345842141,-901.25,0.00014884,2]
[398060639,1765345842150,-516.89,0.00014884,2]
[398060640,1765345842159,-192.7066582,0.00014884,2]
[398060641,1765345842168,-901.25,0.00014884,2]
[398060642,1765345842177,-901.25,0.00014884,2]
[398060643,1765345842187,-374.55557664,0.00014884,2]
[398060644,1765345842196,-500.0,0.00014884,2]
[398060645,1765345842206,-500.0,0.00014884,2]
[398060646,1765345842215,-500.0,0.00014884,2]
[398060647,1765345842224,-1066.44,0.00014884,2]
[398060648,1765345842233,-899.91,0.00014884,2]
[398060649,1765345842242,-500.0,0.00014884,2]
[398060650,1765345842251,-500.0,0.00014884,2]
[398060652,1765345842260,-600.13,0.00014884,2]
[398060653,1765345842269,-712.34,0.00014884,2]
[398060654,1765345842278,-626.82,0.00014884,2]
[398060655,1765345842288,-500.0,0.00014884,2]
[398060657,1765345842297,-536.34,0.00014884,2]
[398060659,1765345842306,-500.0,0.00014884,2]
[398060661,1765345842315,-500.0,0.00014884,2]
[398060662,1765345842326,-500.0,0.00014884,2]
[398060663,1765345842335,-682.45,0.00014884,2]
[398060664,1765345842344,-834.33,0.00014884,2]
[398060670,1765345842560,-500.0,0.00014884,2]
[398060671,1765345842570,-500.0,0.00014884,2]
[398060672,1765345842580,-500.0,0.00014884,2]
[398060673,1765345842590,-500.0,0.00014884,2]
[398060674,1765345842599,-500.0,0.00014884,2]
[398060675,1765345842609,-782.26,0.00014884,2]
[398060676,1765345842618,-500.0,0.00014884,2]
[398060677,1765345842628,-719.65,0.00014884,2]
[398060678,1765345842638,-500.0,0.00014884,2]
[398060679,1765345842647,-1286.01,0.00014884,2]
[398060680,1765345842656,-500.51934497,0.00014884,2]
[398060681,1765345842665,-500.0,0.00014884,2]
[398060682,1765345842675,-744.26,0.00014884,2]
[398060683,1765345842684,-500.0,0.00014884,2]
[398060684,1765345842693,-648.28,0.00014884,2]
[398060685,1765345842703,-506.56691453,0.00014884,2]
[398060686,1765345842712,-696.52,0.00014884,2]
[398060687,1765345842721,-500.0,0.00014884,2]
[398060688,1765345842731,-500.0,0.00014884,2]
[398060689,1765345842740,-500.0,0.00014884,2]
[398060690,1765345842749,-500.0,0.00014884,2]
[398060691,1765345842759,-500.0,0.00014884,2]
[398060692,1765345842769,-984.08,0.00014884,2]
[398060693,1765345842778,-500.0,0.00014884,2]
[398060694,1765345842787,-762.73,0.00014884,2]
[398060695,1765345842797,-520.05,0.00014884,2]
[398060696,1765345842806,-500.0,0.00014884,2]
[398060697,1765345842815,-562.5,0.00014884,2]
[398060698,1765345842825,-783.84,0.00014884,2]
[398060699,1765345842834,-3170.35,0.00014884,2]
[398060700,1765345842843,-500.0,0.00014884,2]
[398060701,1765345842853,-500.0,0.00014884,2]
[398060702,1765345842863,-500.0,0.00014884,2]
[398060703,1765345842872,-1528.17,0.00014884,2]
[398060704,1765345842882,-500.0,0.00014884,2]
[398060705,1765345842892,-500.0,0.00014884,2]
[398060706,1765345842901,-500.0,0.00014884,2]
[398060707,1765345842910,-500.0,0.00014884,2]
[398060708,1765345842919,-649.89,0.00014884,2]
[398060709,1765345842928,-500.0,0.00014884,2]
[398060710,1765345842938,-500.0,0.00014884,2]
[398060711,1765345842947,-500.0,0.00014884,2]
[398060712,1765345842957,-1435.56,0.00014884,2]
[398060713,1765345842966,-1000.0,0.00014884,2]
[398060714,1765345842976,-500.0,0.00014884,2]
[398060715,1765345842986,-665.7,0.00014884,2]
[398060716,1765345842995,-500.0,0.00014884,2]
[398060717,1765345843005,-500.0,0.00014884,2]
[398060718,1765345843015,-587.61,0.00014884,2]
[398060719,1765345843027,-710.89,0.00014884,2]
[398060720,1765345843037,-500.0,0.00014884,2]
[398060721,1765345843047,-1083.4,0.00014884,2]
[398060722,1765345843057,-500.0,0.00014884,2]
[398060723,1765345843067,-239.68192033,0.00014884,2]
[398060724,1765345843077,-3726.8,0.00014884,2]
[398060725,1765345843086,-1306.31,0.00014884,2]
[398060726,1765345843097,-601.72,0.00014884,2]
[398060727,1765345843107,-500.0,0.00014884,2]
[398060728,1765345843118,-540.34,0.00014884,2]
[398060729,1765345843127,-500.0,0.00014884,2]
[398060730,1765345843136,-730.02,0.00014884,2]
[398060731,1765345843146,-500.0,0.00014884,2]
[398060732,1765345843155,-500.0,0.00014884,2]
[398060733,1765345843164,-278.49770595,0.00014884,2]
[398060734,1765345843174,-500.0,0.00014884,2]
[398060735,1765345843183,-500.0,0.00014884,2]
[398060736,1765345843191,-500.0,0.00014884,2]
[398060737,1765345843201,-509.76523665,0.00014884,2]
[398060738,1765345843211,-592.93,0.00014884,2]
[398060739,1765345843220,-824.74,0.00014884,2]
[398060740,1765345843229,-169.48874521,0.00014884,2]
[398060741,1765345843239,-500.0,0.00014884,2]
[398060742,1765345843248,-500.0,0.00014884,2]
[398060743,1765345843258,-2146.16,0.00014884,2]
[398060744,1765345843267,-500.0,0.00014884,2]
[398060745,1765345843276,-500.0,0.00014884,2]
[398060746,1765345843287,-500.0,0.00014884,2]
[398060747,1765345843296,-500.0,0.00014884,2]
[398060748,1765345843305,-500.0,0.00014884,2]
[398060749,1765345843314,-1064.27,0.00014884,2]
[398060750,1765345843324,-500.0,0.00014884,2]
[398060751,1765345843333,-732.8,0.00014884,2]
[398060752,1765345843343,-500.0,0.00014884,2]
[398060753,1765345843352,-500.0,0.00014884,2]
[398060754,1765345843362,-615.7,0.00014884,2]
[398060755,1765345843371,-500.0,0.00014884,2]
[398060756,1765345843381,-788.68,0.00014884,2]
[398060757,1765345843390,-662.05,0.00014884,2]
[398060758,1765345843400,-667.34,0.00014884,2]
[398060759,1765345843410,-500.0,0.00014884,2]
[398060760,1765345843420,-500.0,0.00014884,2]
[398060761,1765345843429,-500.0,0.00014884,2]
[398060762,1765345843439,-807.33,0.00014884,2]
[398060763,1765345843448,-535.0,0.00014884,2]
[398060764,1765345843458,-500.0,0.00014884,2]
[398060765,1765345843468,-500.0,0.00014884,2]
[398060766,1765345843477,-500.0,0.00014884,2]
[398060767,1765345843487,-974.63,0.00014884,2]
[398060768,1765345843496,-500.0,0.00014884,2]
[398060769,1765345843505,-500.0,0.00014884,2]
[398060770,1765345843515,-500.0,0.00014884,2]
[398060771,1765345843524,-500.0,0.00014884,2]
[398060772,1765345843534,-500.0,0.00014884,2]
[398060773,1765345843543,-500.0,0.00014884,2]
[398060774,1765345843552,-500.0,0.00014884,2]
[398060775,1765345843561,-500.0,0.00014884,2]
[398060776,1765345843571,-806.85,0.00014884,2]
[398060777,1765345843580,-500.0,0.00014884,2]
[398060778,1765345843589,-585.33,0.00014884,2]
[398060779,1765345843598,-500.0,0.00014884,2]
[398060780,1765345843608,-736.87,0.00014884,2]
[398060781,1765345843616,-500.0,0.00014884,2]
[398060782,1765345843626,-500.0,0.00014884,2]
[398060783,1765345843635,-500.0,0.00014884,2]
[398060784,1765345843644,-153.88645876,0.00014884,2]
[398060785,1765345843654,-500.0,0.00014884,2]
[398060786,1765345843664,-500.0,0.00014884,2]
[398060787,1765345843673,-516.07094287,0.00014884,2]
[398060788,1765345843682,-726.99,0.00014884,2]
[398060789,1765345843691,-500.0,0.00014884,2]
[398060790,1765345843701,-813.32,0.00014884,2]
[398060791,1765345843710,-2067.42,0.00014884,2]
[398060792,1765345843720,-3089.79,0.00014884,2]
[398060793,1765345843729,-3505.8962,0.00014885,2]
[398060794,1765345843738,-1730.45773576,0.00014898,2]
[398060795,1765345843747,-1000.0,0.00014899,3]
[398060796,1765345843756,-2431.82,0.000149,2]
[398060797,1765345843765,-913.90771316,0.00014909,2]
[398060798,1765345843774,-150.0,0.00014959,2]
[398060799,1765345843783,-150.0,0.00014959,2]
[398060800,1765345843792,-150.0,0.00014959,2]
[398060801,1765345843801,-150.0,0.00014959,2]
[398060802,1765345843810,-500.0,0.00014983,2]
[398060803,1765345843819,-500.0,0.00014983,2]
[398060804,1765345843828,-500.0,0.00014983,2]
[398060805,1765345843838,-500.0,0.00014983,2]
[398060806,1765345843847,-500.0,0.00014983,2]
[398060807,1765345843856,-500.0,0.00014983,2]
[398060808,1765345843864,-500.0,0.00014983,2]
[398060809,1765345843874,-508.84333108,0.00014983,2]
[398060810,1765345843883,-500.0,0.00014983,2]
[398060811,1765345843892,-500.0,0.00014983,2]
[398060812,1765345843901,-500.0,0.00014983,2]
[398060813,1765345843910,-901.25,0.00014983,2]
[398060814,1765345843920,-901.25,0.00014983,2]
[398060815,1765345843929,-500.0,0.00014983,2]